[Event "32nd GER-ch Seniors-50 2020"]
[Site "Magdeburg"]
[Date "2020.08.20"]
[Round "7.6"]
[White "Loew, Gerald"]
[Black "Schober, Ralf"]
[Result "1-0"]
[ECO "A27"]
[WhiteElo "2152"]
[BlackElo "2030"]
[Annotator "ChessBase"]
[PlyCount "93"]
[EventDate "2020.08.14"]
[EventType "swiss"]
[EventCountry "GER"]
[SourceTitle "playchess.com"]
[Source "ChessBase"]
[SourceQuality "1"]
[TimeControl "40/5400+30:1800+30"]

1. c4 {[%emt 0:00:00]} e5 {[%emt 0:01:30]} 2. Nc3 {[%emt 0:00:00]} Nc6 {[%emt 0:00:52]} 3. Nf3 {[%emt 0:01:02]} g6 {[%emt 0:03:19]} 4. d4 {[%emt 0:01:14]} exd4 {[%emt 0:04:25]} 5. Nxd4 {[%emt 0:00:12]} Bg7 {[%emt 0:00:10]} 6. Nxc6 {[%emt 0:01:23]} Bxc3+ {[%emt 0:01:57]} 7. bxc3 {[%emt 0:00:11]} dxc6 {[%emt 0:00:18]} 8. Qd4 {[%emt 0:11:36]} Qxd4 {[%emt 0:08:43]} 9. cxd4 {[%emt 0:00:07]} Nf6 {[%emt 0:00:27]} 10. Bf4 {[%emt 0:01:40]} Be6 {[%emt 0:00:35]} 11. e3 {[%emt 0:01:37]} Rc8 {[%emt 0:01:00]} 12. h3 {[%emt 0:12:48]} O-O {[%emt 0:08:20]} 13. Be2 {[%emt 0:01:47]} Ne4 {[%emt 0:09:45]} 14. a4 {[%emt 0:19:11]} c5 {[%emt 0:04:41]} 15. d5 {[%emt 0:03:11]} Bd7 {[%emt 0:00:42]} 16. Ra3 {[%emt 0:02:51]} Nd6 {[%emt 0:03:13]} 17. a5 {[%emt 0:05:19]} f6 {[%emt 0:04:00]} 18. O-O {[%emt 0:01:57]} Kf7 {[%emt 0:06:42]} 19. Rb1 {[%emt 0:01:15]} Rb8 {[%emt 0:00:10]} 20. f3 {[%emt 0:01:53]} g5 {[%emt 0:06:03]} 21. Bh2 {[%emt 0:00:59]} Rfe8 {[%emt 0:00:27]} 22. Kf2 {[%emt 0:00:34]} Ke7 {[%emt 0:01:48]} 23. Bd3 {[%emt 0:02:30]} h6 {[%emt 0:00:10]} 24. g4 {[%emt 0:02:10]} Kd8 {[%emt 0:02:01]} 25. Bg3 {[%emt 0:03:59]} Ke7 {[%emt 0:03:16]} 26. h4 {[%emt 0:01:13]} Rh8 {[%emt 0:01:03]} 27. Kg2 {[%emt 0:02:46]} Rhe8 {[%emt 0:01:19]} 28. hxg5 {[%emt 0:02:03]} hxg5 {[%emt 0:01:14]} 29. Rh1 {[%emt 0:00:26]} Rh8 {[%emt 0:00:18]} 30. Raa1 {[%emt 0:01:17]} Rbg8 {[%emt 0:01:49]} 31. e4 {[%emt 0:05:50]} c6 {[%emt 0:20:17]} 32. e5 {[%emt 0:04:26]} fxe5 {[%emt 0:00:02]} 33. Bxe5 {[%emt 0:00:25]} Rxh1 {[%emt 0:00:10]} 34. Rxh1 {[%emt 0:00:14]} cxd5 {[%emt 0:00:38]} 35. cxd5 {[%emt 0:00:37]} c4 {[%emt 0:04:05]} 36. Rh7+ {[%emt 0:03:18]} Ke8 {[%emt 0:00:05]} 37. Be2 {[%emt 0:02:25]} Nf7 {[%emt 0:00:16]} 38. Bd4 {[%emt 0:01:09]} Bb5 {[%emt 0:00:56]} 39. Bxa7 {[%emt 0:00:50]} Rh8 {[%emt 0:00:54]} 40. Rg7 {[%emt 0:01:14]} Kf8 {[%emt 0:01:12]} 41. Rg6 {[%emt 0:06:21]} Rh6 {[%emt 0:05:30]} 42. Bc5+ {[%emt 0:01:22]} Ke8 {[%emt 0:00:01]} 43. Rg8+ {[%emt 0:01:51]} Kd7 {[%emt 0:00:02]} 44. Rg7 {[%emt 0:01:22]} Ke8 {[%emt 0:00:20]} 45. Bd1 {[%emt 0:04:40]} Ra6 {[%emt 0:03:20]} 46. Bc2 {[%emt 0:04:00]} Ne5 {[%emt 0:04:09]} 47. Re7+ {[%emt 0:00:12]} 1-0

[Event "32nd GER-ch Seniors-50 2020"]
[Site "Magdeburg"]
[Date "2020.08.20"]
[Round "7.7"]
[White "Doeserich, Juergen"]
[Black "Schatz, Christian"]
[Result "0-1"]
[ECO "A59"]
[WhiteElo "2034"]
[BlackElo "2162"]
[Annotator "ChessBase"]
[PlyCount "91"]
[EventDate "2020.08.14"]
[EventType "swiss"]
[EventCountry "GER"]
[SourceTitle "playchess.com"]
[Source "ChessBase"]
[SourceQuality "1"]
[TimeControl "40/5400+30:1800+30"]

1. d4 {[%emt 0:00:00]} Nf6 {[%emt 0:00:00]} 2. c4 {[%emt 0:00:00]} c5 {[%emt 0:00:17]} 3. d5 {[%emt 0:00:00]} b5 {[%emt 0:00:04]} 4. cxb5 {[%emt 0:00:00]} a6 {[%emt 0:00:05]} 5. bxa6 {[%emt 0:00:17]} Bxa6 {[%emt 0:00:16]} 6. Nc3 {[%emt 0:00:09]} d6 {[%emt 0:00:58]} 7. e4 {[%emt 0:00:35]} Qa5 {[%emt 0:01:27]} 8. Bxa6 {[%emt 0:04:00]} Qxa6 {[%emt 0:01:01]} 9. Qe2 {[%emt 0:01:02]} g6 {[%emt 0:00:13]} 10. Nf3 {[%emt 0:05:14]} Bg7 {[%emt 0:01:03]} 11. Nb5 {[%emt 0:04:17]} O-O {[%emt 0:00:40]} 12. a4 {[%emt 0:00:17]} Nbd7 {[%emt 0:00:45]} 13. Ra3 {[%emt 0:03:07]} Rfc8 {[%emt 0:10:51]} 14. b3 {[%emt 0:07:56]} Nb6 {[%emt 0:10:59]} 15. a5 {[%emt 0:13:07]} Nbd7 {[%emt 0:01:41]} 16. Nd2 {[%emt 0:06:14]} Ne8 {[%emt 0:03:41]} 17. Nb1 {[%emt 0:04:34]} c4 {[%emt 0:05:23]} 18. bxc4 {[%emt 0:03:42]} Ne5 {[%emt 0:00:17]} 19. N1c3 {[%emt 0:10:50]} Nxc4 {[%emt 0:01:32]} 20. Ra4 {[%emt 0:02:55]} Nxa5 {[%emt 0:06:57]} 21. Bd2 {[%emt 0:00:53]} Qb7 {[%emt 0:02:59]} 22. O-O {[%emt 0:02:29]} Nb3 {[%emt 0:01:15]} 23. Rxa8 {[%emt 0:01:37]} Qxa8 {[%emt 0:00:23]} 24. Rb1 {[%emt 0:03:25]} Nxd2 {[%emt 0:00:33]} 25. Qxd2 {[%emt 0:00:02]} Qa5 {[%emt 0:03:35]} 26. Rc1 {[%emt 0:02:47]} Qb4 {[%emt 0:00:56]} 27. Qd3 {[%emt 0:07:02]} Qb2 {[%emt 0:06:02]} 28. Qb1 {[%emt 0:00:43]} Qxb1 {[%emt 0:03:25]} 29. Rxb1 {[%emt 0:00:02]} Rxc3 {[%emt 0:00:35]} 30. Nxc3 {[%emt 0:00:06]} Bxc3 {[%emt 0:00:05]} 31. Rb8 {[%emt 0:00:52]} Kf8 {[%emt 0:00:08]} 32. g4 {[%emt 0:01:09]} g5 {[%emt 0:01:30]} 33. f3 {[%emt 0:02:46]} e6 {[%emt 0:04:05]} 34. dxe6 {[%emt 0:01:05]} fxe6 {[%emt 0:00:06]} 35. Kf2 {[%emt 0:01:00]} Be5 {[%emt 0:04:23]} 36. Rb7 {[%emt 0:00:54]} h6 {[%emt 0:02:46]} 37. h3 {[%emt 0:00:44]} Nf6 {[%emt 0:00:27]} 38. Ke3 {[%emt 0:03:28]} Ng8 {[%emt 0:00:31]} 39. h4 {[%emt 0:02:40]} Bf4+ {[%emt 0:00:40]} 40. Kf2 {[%emt 0:00:47]} gxh4 {[%emt 0:00:29]} 41. Kg2 {[%emt 0:30:12]} Ne7 {[%emt 0:31:22]} 42. Kh3 {[%emt 0:01:06]} Ng6 {[%emt 0:01:51]} 43. g5 {[%emt 0:01:53]} hxg5 {[%emt 0:03:24]} 44. Kg4 {[%emt 0:00:09]} Ne5+ {[%emt 0:00:26]} 45. Kh5 {[%emt 0:00:09]} h3 46. Rb8+ 0-1

[Event "32nd GER-ch Seniors-50 2020"]
[Site "Magdeburg"]
[Date "2020.08.20"]
[Round "7.8"]
[White "Zuehlke, Burkhard"]
[Black "Noldt, Torsten"]
[Result "0-1"]
[ECO "A57"]
[WhiteElo "2005"]
[BlackElo "2002"]
[Annotator "ChessBase"]
[PlyCount "77"]
[EventDate "2020.08.14"]
[EventType "swiss"]
[EventCountry "GER"]
[SourceTitle "playchess.com"]
[Source "ChessBase"]
[SourceQuality "1"]
[TimeControl "40/5400+30:1800+30"]

1. d4 {[%emt 0:00:00]} c5 {[%emt 0:00:07]} 2. d5 {[%emt 0:00:00]} Nf6 {[%emt 0:00:22]} 3. c4 {[%emt 0:00:10]} b5 {[%emt 0:00:54]} 4. Nf3 {[%emt 0:00:53]} g6 {[%emt 0:01:54]} 5. cxb5 {[%emt 0:03:07]} a6 {[%emt 0:01:18]} 6. e4 {[%emt 0:00:45]} d6 {[%emt 0:04:20]} 7. Nc3 {[%emt 0:01:12]} axb5 {[%emt 0:02:38]} 8. Bxb5+ {[%emt 0:00:48]} Bd7 {[%emt 0:00:44]} 9. Bc4 {[%emt 0:01:43]} Bg7 {[%emt 0:01:25]} 10. O-O {[%emt 0:04:51]} O-O {[%emt 0:01:54]} 11. h3 {[%emt 0:09:53]} Qb6 {[%emt 0:15:06]} 12. Qe2 {[%emt 0:06:20]} Bc8 {[%emt 0:03:08]} 13. e5 {[%emt 0:01:16]} Ne8 {[%emt 0:00:51]} 14. Bg5 {[%emt 0:06:56]} f6 {[%emt 0:01:52]} 15. exf6 {[%emt 0:00:18]} exf6 {[%emt 0:00:39]} 16. Bf4 {[%emt 0:05:10]} Ba6 {[%emt 0:06:30]} 17. Nb5 {[%emt 0:02:49]} Nd7 {[%emt 0:06:44]} 18. a4 {[%emt 0:03:37]} Ne5 {[%emt 0:05:50]} 19. Bxe5 {[%emt 0:04:04]} fxe5 {[%emt 0:04:03]} 20. Ng5 {[%emt 0:00:15]} Bxb5 {[%emt 0:06:41]} 21. Bxb5 {[%emt 0:01:34]} Nc7 {[%emt 0:00:27]} 22. Bc6 {[%emt 0:00:23]} Rab8 {[%emt 0:01:06]} 23. a5 {[%emt 0:07:34]} Qa6 {[%emt 0:09:00]} 24. Qxa6 {[%emt 0:01:00]} Nxa6 {[%emt 0:00:06]} 25. Ne4 {[%emt 0:00:30]} Rfd8 {[%emt 0:03:23]} 26. g4 {[%emt 0:07:02]} Rb4 {[%emt 0:02:19]} 27. f3 {[%emt 0:00:56]} h6 {[%emt 0:01:52]} 28. Rf2 {[%emt 0:03:27]} Kf7 {[%emt 0:04:56]} 29. h4 {[%emt 0:06:49]} Ke7 {[%emt 0:01:00]} 30. Ra4 {[%emt 0:05:05]} Rb3 {[%emt 0:00:35]} 31. h5 {[%emt 0:04:54]} Rdb8 {[%emt 0:03:49]} 32. hxg6 {[%emt 0:05:22]} Rxb2 {[%emt 0:02:55]} 33. Kg2 Rxf2+ {[%emt 0:05:13]} 34. Kxf2 {[%emt 0:00:55]} Bf6 {[%emt 0:00:19]} 35. Ke2 {[%emt 0:05:34]} Bg5 {[%emt 0:01:50]} 36. Kd3 {[%emt 0:01:14]} Rb3+ {[%emt 0:00:30]} 37. Kc4 {[%emt 0:00:52]} Rxf3 {[%emt 0:01:14]} 38. Kb5 {[%emt 0:00:54]} Nb8 {[%emt 0:00:02]} 39. a6 0-1

[Event "32nd GER-ch Seniors-50 2020"]
[Site "Magdeburg"]
[Date "2020.08.21"]
[Round "8.3"]
[White "Vatter, Hans-Joachim"]
[Black "Kahe, Ralph"]
[Result "1-0"]
[ECO "B06"]
[WhiteElo "2204"]
[BlackElo "2165"]
[Annotator "ChessBase"]
[PlyCount "51"]
[EventDate "2020.08.14"]
[EventType "swiss"]
[EventCountry "GER"]
[SourceTitle "playchess.com"]
[Source "ChessBase"]
[SourceQuality "1"]
[TimeControl "40/5400+30:1800+30"]

1. e4 {[%emt 0:00:57]} g6 {[%emt 0:00:00]} 2. d4 {[%emt 0:00:13]} Bg7 {[%emt 0:00:00]} 3. c3 {[%emt 0:00:42]} d6 {[%emt 0:02:44]} 4. f4 {[%emt 0:00:25]} e5 {[%emt 0:01:11]} 5. dxe5 {[%emt 0:01:49]} dxe5 {[%emt 0:00:02]} 6. Qxd8+ {[%emt 0:00:12]} Kxd8 {[%emt 0:00:04]} 7. Nf3 {[%emt 0:00:23]} Nd7 {[%emt 0:00:43]} 8. Na3 {[%emt 0:01:24]} a6 {[%emt 0:01:21]} 9. Nc4 {[%emt 0:00:17]} exf4 {[%emt 0:03:17]} 10. Bxf4 {[%emt 0:00:16]} f6 {[%emt 0:00:08]} 11. O-O-O {[%emt 0:00:34]} Bh6 {[%emt 0:00:07]} 12. g3 {[%emt 0:01:30]} Ke7 {[%emt 0:00:36]} 13. Bg2 {[%emt 0:08:03]} Bxf4+ {[%emt 0:02:56]} 14. gxf4 {[%emt 0:00:34]} Nh6 {[%emt 0:00:16]} 15. Rhe1 {[%emt 0:19:02]} Nf7 {[%emt 0:06:08]} 16. b4 {[%emt 0:06:33]} Nf8 {[%emt 0:05:20]} 17. Na5 {[%emt 0:05:52]} Rb8 {[%emt 0:01:58]} 18. Nd4 {[%emt 0:03:02]} Bd7 {[%emt 0:00:09]} 19. e5 {[%emt 0:00:07]} fxe5 {[%emt 0:01:10]} 20. Bxb7 {[%emt 0:02:23]} Ne6 {[%emt 0:06:25]} 21. Nxe6 {[%emt 0:00:55]} Kxe6 {[%emt 0:01:30]} 22. Bd5+ {[%emt 0:00:12]} Ke7 {[%emt 0:00:04]} 23. Bxf7 {[%emt 0:00:06]} Bg4 {[%emt 0:00:21]} 24. Bc4 {[%emt 0:01:05]} Bxd1 {[%emt 0:00:07]} 25. Nc6+ {[%emt 0:00:06]} Kd6 {[%emt 0:00:59]} 26. Nxb8 {[%emt 0:02:10]} 1-0

[Event "32nd GER-ch Seniors-50 2020"]
[Site "Magdeburg"]
[Date "2020.08.21"]
[Round "8.7"]
[White "Lindam, Ingo"]
[Black "Pitschka, Claus"]
[Result "1/2-1/2"]
[ECO "A43"]
[WhiteElo "2142"]
[BlackElo "2158"]
[Annotator "ChessBase"]
[PlyCount "33"]
[EventDate "2020.08.14"]
[EventType "swiss"]
[EventCountry "GER"]
[SourceTitle "playchess.com"]
[Source "ChessBase"]
[SourceQuality "1"]
[TimeControl "40/5400+30:1800+30"]

1. d4 {[%emt 0:00:23]} c5 {[%emt 0:07:21]} 2. d5 {[%emt 0:00:07]} d6 {[%emt 0:04:24]} 3. e4 {[%emt 0:01:12]} Nf6 {[%emt 0:00:12]} 4. Nc3 {[%emt 0:00:13]} g6 {[%emt 0:00:20]} 5. Bb5+ {[%emt 0:01:16]} Bd7 {[%emt 0:05:47]} 6. a4 {[%emt 0:00:24]} Bg7 {[%emt 0:01:22]} 7. h3 {[%emt 0:01:28]} Na6 {[%emt 0:02:52]} 8. Nf3 {[%emt 0:00:28]} O-O {[%emt 0:00:58]} 9. O-O {[%emt 0:02:42]} Bxb5 {[%emt 0:03:58]} 10. axb5 {[%emt 0:01:05]} Nc7 {[%emt 0:00:51]} 11. Re1 {[%emt 0:10:09]} a6 {[%emt 0:05:32]} 12. Qe2 {[%emt 0:11:46]} Nd7 {[%emt 0:05:34]} 13. bxa6 {[%emt 0:07:15]} Rxa6 {[%emt 0:01:04]} 14. Rxa6 {[%emt 0:00:16]} Nxa6 {[%emt 0:00:26]} 15. Qb5 {[%emt 0:04:58]} Nb4 {[%emt 0:04:30]} 16. Re2 {[%emt 0:02:42]} Qc7 {[%emt 0:00:29]} 17. Bg5 1/2-1/2

[Event "32nd GER-ch Seniors-50 2020"]
[Site "Magdeburg"]
[Date "2020.08.21"]
[Round "8.8"]
[White "Zuehlke, Burkhard"]
[Black "Namyslo, Holger"]
[Result "0-1"]
[ECO "D10"]
[WhiteElo "2005"]
[BlackElo "2149"]
[Annotator "ChessBase"]
[PlyCount "27"]
[EventDate "2020.08.14"]
[EventType "swiss"]
[EventCountry "GER"]
[SourceTitle "playchess.com"]
[Source "ChessBase"]
[SourceQuality "1"]
[TimeControl "40/5400+30:1800+30"]

1. d4 {[%emt 0:00:00]} d5 {[%emt 0:00:00]} 2. c4 {[%emt 0:00:00]} c6 {[%emt 0:00:16]} 3. cxd5 {[%emt 0:00:00]} cxd5 {[%emt 0:00:05]} 4. Bf4 {[%emt 0:00:09]} Nf6 {[%emt 0:00:37]} 5. e3 {[%emt 0:00:21]} Qb6 {[%emt 0:04:56]} 6. Qc2 {[%emt 0:08:33]} Nc6 {[%emt 0:01:48]} 7. Nc3 {[%emt 0:11:48]} Bf5 {[%emt 0:06:29]} 8. Qb3 {[%emt 0:03:23]} Qxb3 {[%emt 0:06:01]} 9. axb3 {[%emt 0:00:08]} e6 {[%emt 0:02:33]} 10. Bb5 {[%emt 0:04:11]} Bb4 {[%emt 0:02:10]} 11. Nge2 {[%emt 0:08:59]} Bc2 {[%emt 0:05:51]} 12. Ba4 {[%emt 0:03:21]} Kd7 {[%emt 0:07:04]} 13. Rc1 {[%emt 0:03:31]} Bd3 {[%emt 0:01:20]} 14. f3 {[%emt 0:10:14]} 0-1